fUST/lending_fUST_20241108
["ID","MTS","AMOUNT","RATE_DAILY","PERIOD"]
[341561588,1730995548134,227.2839468,0.00013973,2]
[341561682,1730995838346,-329.600724,0.00028594,7]
[341561684,1730995838358,-170.399276,0.00028594,7]
[341561686,1730995838370,-217.55084738,0.00029,30]
[341561688,1730995838381,-538.34915262,0.00029,30]
[341561690,1730995838390,-176.684135,0.00029946,2]
[341561692,1730995838399,-227.5,0.0003,2]
[341561694,1730995838409,-523.57517997,0.0003,14]
[341561775,1730995842950,-1997.16649383,0.0003,14]
[341561776,1730995842959,-1891.14856916,0.00030036,2]
[341561777,1730995842968,-150.25186794,0.00030036,2]
[341561778,1730995842978,-228.51798378,0.00030134,2]
[341561779,1730995842992,-71.48201622,0.00030134,2]
[341561780,1730995843001,-165.193,0.00030135,25]
[341561781,1730995843010,-500.0,0.00030135,2]
[341561782,1730995843019,-500.0,0.00030135,2]
[341561783,1730995843028,-184.58154836,0.00030135,2]
[341561784,1730995843038,-500.0,0.00030135,2]
[341561785,1730995843048,-500.0,0.00030135,2]
[341561786,1730995843057,-339.01651014,0.00030135,2]
[341561787,1730995843068,-500.0,0.00030135,2]
[341561788,1730995843077,-500.0,0.00030136,2]
[341561789,1730995843086,-500.0,0.00030136,2]
[341561790,1730995843095,-502.91477559,0.00030136,2]
[341561791,1730995843104,-500.0,0.00030136,2]
[341561792,1730995843113,-500.0,0.00030136,2]
[341561794,1730995843123,-500.0,0.00030136,2]
[341561796,1730995843132,-500.0,0.00030136,2]
[341561798,1730995843141,-622.9,0.00030136,2]
[341561801,1730995843150,-500.0,0.00030136,2]
[341561804,1730995843159,-500.0,0.00030136,2]
[341561806,1730995843169,-662.84195946,0.00030136,2]
[341561811,1730995843193,-403.58804054,0.00030136,2]
[341561813,1730995843202,-503.62948781,0.00030136,2]
[341561815,1730995843211,-500.0,0.00030136,2]
[341561817,1730995843220,-500.0,0.00030136,2]
[341561818,1730995843230,-500.0,0.00030136,2]
[341561819,1730995843239,-297.01634012,0.00030136,2]
[341561820,1730995843249,-500.0,0.00030136,2]
[341561821,1730995843258,-524.37990091,0.00030136,2]
[341561822,1730995843268,-201.44585627,0.00030136,2]
[341561823,1730995843277,-504.64514389,0.00030136,2]
[341561824,1730995843287,-518.94122464,0.00030136,2]
[341561825,1730995843297,-500.0,0.00030136,2]
[341561826,1730995843307,-243.48057354,0.00030136,2]
[341561827,1730995843316,-504.43599215,0.00030136,2]
[341561828,1730995843326,-254.37968689,0.00030136,2]
[341561829,1730995843335,-498.61418714,0.00030136,2]
[341561830,1730995843345,-406.06965389,0.00030136,2]
[341561831,1730995843354,-500.0,0.00030136,2]
[341561832,1730995843363,-500.0,0.00030136,2]
[341561833,1730995843373,-500.0,0.00030136,2]
[341561834,1730995843382,-500.0,0.00030136,2]
[341561835,1730995843391,-500.0,0.00030136,2]
[341561836,1730995843401,-2336.0,0.00030136,2]
[341561837,1730995843410,-500.0,0.00030136,2]
[341561838,1730995843419,-500.0,0.00030136,2]
[341561839,1730995843429,-500.0,0.00030136,2]
[341561840,1730995843438,-500.0,0.00030136,2]
[341561841,1730995843447,-199.20882021,0.00030136,2]
[341561842,1730995843456,-500.0,0.00030136,2]
[341561843,1730995843465,-500.0,0.00030136,2]
[341561844,1730995843474,-500.0,0.00030136,2]
[341561845,1730995843483,-500.0,0.00030136,2]
[341561846,1730995843492,-500.0,0.00030136,2]
[341561847,1730995843502,-500.0,0.00030136,2]
[341561848,1730995843511,-500.0,0.00030136,2]
[341561849,1730995843520,-500.0,0.00030136,2]
[341561850,1730995843529,-500.0,0.00030136,2]
[341561851,1730995843538,-500.0,0.00030136,2]
[341561852,1730995843547,-500.0,0.00030136,2]
[341561853,1730995843556,-500.0,0.00030136,2]
[341561854,1730995843565,-500.0,0.00030136,2]
[341561855,1730995843574,-500.0,0.00030136,2]
[341561856,1730995843583,-500.0,0.00030136,2]
[341561857,1730995843592,-201.50626268,0.00030136,2]
[341561858,1730995843601,-500.0,0.00030136,2]
[341561859,1730995843610,-500.0,0.00030136,2]
[341561860,1730995843619,-500.0,0.00030136,2]
[341561861,1730995843629,-500.0,0.00030136,2]
[341561862,1730995843637,-521.83850951,0.00030136,2]
[341561864,1730995843647,-500.0,0.00030136,2]
[341561865,1730995843656,-500.0,0.00030136,2]
[341561866,1730995843667,-500.0,0.00030136,2]
[341561867,1730995843678,-500.0,0.00030136,2]
[341561868,1730995843692,-500.0,0.00030136,2]
[341561869,1730995843701,-618.3,0.00030136,2]
[341561870,1730995843711,-500.0,0.00030136,2]
[341561872,1730995843720,-559.34,0.00030136,2]
[341561874,1730995843730,-169.68108327,0.00030136,2]
[341561875,1730995843740,-520.70841967,0.00030136,2]
[341561876,1730995843750,-500.0,0.00030136,2]
[341561877,1730995843760,-500.0,0.00030136,2]
[341561878,1730995843769,-500.0,0.00030136,2]
[341561879,1730995843779,-500.0,0.00030136,2]
[341561880,1730995843788,-500.0,0.00030136,2]
[341561881,1730995843798,-500.0,0.00030136,2]
[341561882,1730995843808,-500.0,0.00030136,2]
[341561883,1730995843819,-500.0,0.00030136,2]
[341561884,1730995843828,-500.0,0.00030136,2]
[341561885,1730995843838,-500.0,0.00030136,2]
[341561886,1730995843848,-515.56539083,0.00030136,2]
[341561887,1730995843857,-200.6228251,0.00030136,2]
[341561888,1730995843866,-500.0,0.00030136,2]
[341561889,1730995843876,-500.0,0.00030136,2]
[341561890,1730995843885,-365.29854441,0.00030136,2]
[341561891,1730995843895,-500.0,0.00030136,2]
[341561892,1730995843904,-500.0,0.00030136,2]
[341561893,1730995843914,-500.0,0.00030136,2]
[341561894,1730995843923,-477.83855266,0.00030136,2]
[341561895,1730995843933,-509.7261097,0.00030136,2]
[341561896,1730995843942,-500.0,0.00030136,2]
[341561897,1730995843951,-513.49602127,0.00030136,2]
[341561898,1730995843961,-500.0,0.00030136,2]
[341561899,1730995843971,-500.0,0.00030136,2]
[341561900,1730995843981,-500.0,0.00030136,2]
[341561901,1730995843994,-501.8074694,0.00030136,2]
[341561902,1730995844003,-504.14350505,0.00030136,2]
[341561903,1730995844012,-500.0,0.00030136,2]
[341561904,1730995844022,-502.96751105,0.00030136,2]
[341561905,1730995844032,-500.0,0.00030136,2]
[341561906,1730995844041,-177.47039217,0.00030136,2]
[341561907,1730995844050,-500.0,0.00030136,2]
[341561908,1730995844061,-505.73462344,0.00030136,2]
[341561909,1730995844070,-500.0,0.00030136,2]
[341561910,1730995844080,-500.0,0.00030136,2]
[341561911,1730995844090,-504.27712107,0.00030136,2]
[341561912,1730995844100,-500.0,0.00030136,2]
[341561913,1730995844109,-500.0,0.00030136,2]
[341561914,1730995844118,-500.0,0.00030136,2]
[341561915,1730995844132,-578.29526671,0.00030136,2]
[341561916,1730995844141,-527.1180996,0.00030136,2]
[341561917,1730995844151,-500.0,0.00030136,2]
[341561918,1730995844160,-505.71914092,0.00030136,2]
[341561919,1730995844170,-509.34725419,0.00030136,2]
[341561920,1730995844179,-601.52900485,0.00030136,2]
[341561921,1730995844189,-500.0,0.00030136,2]
[341561922,1730995844198,-626.71494926,0.00030136,2]
[341561923,1730995844207,-500.0,0.00030136,2]
[341561924,1730995844216,-503.05059711,0.00030136,2]
[341561925,1730995844226,-500.0,0.00030136,2]
[341561926,1730995844235,-500.0,0.00030136,2]
[341561927,1730995844246,-440.62237418,0.00030136,2]
[341561928,1730995844256,-355.35730966,0.00030136,2]
[341561929,1730995844265,-500.0,0.00030136,2]
[341561930,1730995844275,-500.0,0.00030136,2]
[341561931,1730995844284,-500.0,0.00030136,2]
[341561932,1730995844294,-500.0,0.00030136,2]
[341561933,1730995844303,-500.0,0.00030136,2]
[341561934,1730995844313,-366.11959089,0.00030136,2]
[341561935,1730995844322,-500.0,0.00030136,2]
[341561936,1730995844331,-500.0,0.00030136,2]
[341561937,1730995844340,-512.9141499,0.00030136,2]
[341561938,1730995844350,-500.0,0.00030136,2]
[341561939,1730995844360,-198.64381512,0.00030136,2]
[341561940,1730995844373,-500.0,0.00030136,2]
[341561941,1730995844382,-445.17,0.00030136,2]
[341561942,1730995844391,-500.0,0.00030136,2]
[341561943,1730995844401,-500.0,0.00030136,2]
[341561944,1730995844410,-500.0,0.00030136,2]
[341561945,1730995844420,-500.0,0.00030136,2]
[341561946,1730995844431,-500.0,0.00030136,2]
[341561947,1730995844443,-265.28700354,0.00030136,2]
[341561948,1730995844454,-500.0,0.00030136,2]
[341561949,1730995844464,-500.0,0.00030136,2]
[341561950,1730995844473,-500.0,0.00030136,2]
[341561951,1730995844481,-2069.99,0.00030136,2]
[341561952,1730995844490,-500.0,0.00030136,2]
[341561953,1730995844500,-500.0,0.00030136,2]
[341561954,1730995844509,-2452.16,0.00030136,2]
[341561955,1730995844520,-500.0,0.00030136,2]
[341561956,1730995844530,-500.0,0.00030136,2]
[341561957,1730995844542,-500.0,0.00030136,2]
[341561958,1730995844552,-418.23917679,0.00030136,2]
[341561959,1730995844562,-500.0,0.00030136,2]
[341561960,1730995844572,-500.0,0.00030136,2]
[341561961,1730995844581,-501.98599992,0.00030136,2]
[341561962,1730995844590,-500.0,0.00030136,2]
[341561963,1730995844599,-645.2158276,0.00030136,2]
[341561964,1730995844609,-500.0,0.00030136,2]
[341561965,1730995844618,-500.0,0.00030136,2]
[341561966,1730995844629,-500.0,0.00030136,2]
[341561967,1730995844638,-500.0,0.00030136,2]
[341561968,1730995844647,-500.0,0.00030238,7]
[341561969,1730995844657,-176.684135,0.00030321,2]
[341561970,1730995844666,-1891.1485691,0.0003036,2]
[341561971,1730995844676,-933.02,0.000304,10]
[341561972,1730995844686,-777.51,0.000304,10]
[341561973,1730995844696,-647.93,0.000304,10]
[341561974,1730995844705,-539.94,0.000304,10]
[341561975,1730995844716,-377.79,0.0003041,2]
[341561976,1730995844726,-1066.43,0.0003041,2]
[341561977,1730995844737,-558.91721875,0.0003041,60]
[341561978,1730995844747,-173.89196664,0.0003041,2]
[341561979,1730995844756,-2336.0,0.0003041,2]
[341561980,1730995844854,-500.0,0.0003041,2]
[341561981,1730995844864,-500.0,0.0003041,2]
[341561982,1730995844877,-500.0,0.0003041,2]
[341561983,1730995844886,-501.76212153,0.0003041,2]
[341561984,1730995844896,-500.0,0.0003041,2]
[341561985,1730995844905,-500.0,0.0003041,2]
[341561986,1730995844916,-500.0,0.0003041,2]
[341561987,1730995844926,-472.26,0.0003041,2]
[341561988,1730995844937,-500.0,0.0003041,2]
[341561989,1730995844948,-500.0,0.0003041,2]
[341561990,1730995844958,-534.52881182,0.0003041,2]
[341561991,1730995844967,-539.90205656,0.0003041,2]
[341561992,1730995844977,-405.29017263,0.0003041,2]
[341561993,1730995844990,-500.0,0.0003041,2]
[341561994,1730995845001,-500.0,0.0003041,2]
[341561995,1730995845011,-569.11211755,0.0003041,2]
[341561996,1730995845022,-263.84186728,0.0003041,2]
[341561997,1730995845035,-500.0,0.0003041,2]
[341561998,1730995845044,-496.34,0.0003041,2]
[341561999,1730995845053,-586.96,0.0003041,2]
[341562000,1730995845063,-500.0,0.0003041,2]
[341562001,1730995845074,-529.43441727,0.0003041,2]
[341562002,1730995845083,-2069.99,0.0003041,2]
[341562003,1730995845093,-2452.16,0.0003041,2]
[341562004,1730995845102,-500.0,0.0003041,2]
[341562005,1730995845111,-500.0,0.0003041,2]
[341562006,1730995845123,-604.4801936,0.0003041,2]
[341562007,1730995845134,-500.0,0.00030441,5]
[341562008,1730995845144,-501.5983851,0.00030441,5]
[341562009,1730995845153,-500.0,0.00030441,5]
[341562010,1730995845162,-500.0,0.00030441,5]
[341562012,1730995845172,-163.0,0.00030441,2]
[341562013,1730995845181,-246.07540884,0.00030444,2]
[341562014,1730995845191,-260.52414203,0.00030444,5]
[341562015,1730995845200,-500.0,0.00030444,5]
[341562016,1730995845209,-500.0,0.00030444,2]
[341562017,1730995845219,-500.0,0.00030494,5]
[341562018,1730995845229,-500.0,0.00030521,5]
[341562019,1730995845237,-500.0,0.00030521,2]
[341562020,1730995845247,-500.7448973,0.00030524,5]
[341562021,1730995845258,-162.45617148,0.00030524,5]
[341562023,1730995845272,-500.0,0.00030524,5]
[341562024,1730995845283,-501.57945964,0.00030524,5]
[341562025,1730995845292,-502.51838893,0.00030524,5]
[341562026,1730995845301,-288.72538904,0.00030524,5]
[341562027,1730995845310,-151.0,0.00030565,7]
[341562028,1730995845320,-151.0,0.00030565,7]
[341562030,1730995845328,-253.742082,0.00030565,7]
[341562031,1730995845338,-253.742082,0.00030565,7]
[341562033,1730995845347,-151.0,0.00030565,7]
[341562035,1730995845357,-210.118854,0.00030565,7]
[341562036,1730995845366,-210.118854,0.00030565,7]
[341562037,1730995845378,-2861.490787,0.00030565,7]
[341562038,1730995845385,-2861.490787,0.00030565,7]
[341562040,1730995845393,-502.54176911,0.00030628,5]
[341562041,1730995845401,-502.50620464,0.00030628,5]
[341562043,1730995845409,-164.5,0.0003065,2]
[341562045,1730995845418,-1891.1485691,0.00030684,2]
[341562047,1730995845427,-1066.43,0.00030684,2]
[341562049,1730995845437,-2336.0,0.00030684,2]
[341562051,1730995845447,-500.0,0.00030684,2]
[341562053,1730995845458,-500.0,0.00030684,2]
[341562055,1730995845469,-500.0,0.00030684,2]
[341562057,1730995845478,-500.0,0.00030684,2]
[341562059,1730995845488,-500.0,0.00030684,2]
[341562061,1730995845500,-2069.99,0.00030684,2]
[341562063,1730995845512,-2452.16,0.00030684,2]
[341562065,1730995845525,-297.82,0.00030684,2]
[341562067,1730995845534,-500.0,0.00030684,2]
[341562069,1730995845544,-176.684135,0.00030695,2]
[341562071,1730995845553,-313.17793904,0.00030957,2]
[341562073,1730995845562,-368.44448487,0.00030957,2]
[341562075,1730995845571,-309.90124568,0.00030957,2]
[341562077,1730995845580,-154.644665,0.00030958,7]
[341562079,1730995845590,-1066.43,0.00030958,2]
[341562081,1730995845599,-2336.0,0.00030958,2]
[341562082,1730995845608,-500.0,0.00030958,2]
[341562084,1730995845618,-300.01632708,0.00030958,2]
[341562086,1730995845630,-500.0,0.00030958,2]
[341562089,1730995845640,-500.0,0.00030958,2]
[341562090,1730995845649,-2069.99,0.00030958,2]
[341562092,1730995845659,-2452.16,0.00030958,2]
[341562094,1730995845668,-500.0,0.00030958,2]
[341562096,1730995845678,-1891.1485691,0.00031008,2]
[341562098,1730995845688,-151.0,0.00031062,7]
[341562100,1730995845698,-271.14961,0.00031062,7]
[341562102,1730995845707,-271.14961,0.00031062,7]
[341562103,1730995845717,-501.79244697,0.00031062,2]
[341562105,1730995845727,-532.1807069,0.00031062,2]
[341562106,1730995845736,-514.12558386,0.00031062,2]
[341562108,1730995845746,-503.82113881,0.00031062,2]
[341562109,1730995845755,-151.0,0.00031062,7]
[341562110,1730995845765,-500.0,0.00031062,2]
[341562111,1730995845774,-151.0,0.00031062,7]
[341562112,1730995845784,-253.742082,0.00031062,7]
[341562113,1730995845793,-517.92815653,0.00031062,2]
[341562114,1730995845803,-500.0,0.00031062,2]
[341562115,1730995845814,-253.742082,0.00031062,7]
[341562116,1730995845823,-500.0,0.00031062,2]
[341562117,1730995845833,-500.0,0.00031062,2]
[341562118,1730995845842,-500.0,0.00031062,2]
[341562119,1730995845852,-500.0,0.00031062,2]
[341562120,1730995845863,-507.84021264,0.00031062,2]
[341562121,1730995845873,-479.95199236,0.00031062,2]
[341562122,1730995845883,-151.0,0.00031062,7]
[341562123,1730995845892,-210.118854,0.00031062,7]
[341562124,1730995845902,-210.118854,0.00031062,7]
[341562125,1730995845912,-2861.490787,0.00031062,7]
[341562126,1730995845921,-2861.490787,0.00031062,7]
[341562127,1730995845931,-1134.0,0.00031064,2]
[341562128,1730995845940,-438.879,0.00031064,2]
[341562129,1730995845950,-2392.0,0.00031064,2]
[341562130,1730995845959,-176.684135,0.00031069,2]
[341562131,1730995845969,-600.0,0.0003113,2]
[341562132,1730995845980,-1066.43,0.00031232,2]
[341562133,1730995845994,-2336.0,0.00031232,2]
[341562134,1730995846003,-500.0,0.00031232,2]
[341562135,1730995846013,-500.0,0.00031232,2]
[341562136,1730995846023,-500.0,0.00031232,2]
[341562137,1730995846034,-2069.99,0.00031232,2]
[341562138,1730995846044,-2452.16,0.00031232,2]
[341562139,1730995846053,-500.0,0.00031232,2]
[341562140,1730995846063,-316.896759,0.0003136,7]
[341562141,1730995846073,-316.896759,0.0003136,7]
[341562142,1730995846083,-151.0,0.0003136,7]
[341562143,1730995846093,-151.0,0.0003136,7]
[341562144,1730995846103,-176.684135,0.00031444,2]
[341562145,1730995846112,-500.0,0.000315,36]
[341562146,1730995846126,-271.14961,0.00031506,7]
[341562147,1730995846135,-271.14961,0.00031506,7]
[341562148,1730995846145,-1066.43,0.00031506,2]
[341562149,1730995846154,-2336.0,0.00031506,2]
[341562150,1730995846164,-503.0,0.00031506,2]
[341562151,1730995846174,-500.0,0.00031506,2]
[341562152,1730995846185,-500.0,0.00031506,2]
[341562153,1730995846195,-2069.99,0.00031506,2]
[341562154,1730995846205,-2452.16,0.00031506,2]
[341562155,1730995846214,-500.0,0.00031506,2]
[341562156,1730995846224,-1000.0,0.000316,2]
[341562157,1730995846234,-500.0,0.00031609,12]
[341562158,1730995846244,-151.0,0.00031618,7]
[341562159,1730995846254,-500.0,0.00031699,7]
[341562160,1730995846265,-17963.82659789,0.000317,2]
[341562161,1730995846280,-3300.15711357,0.000317,2]
[341562162,1730995846297,-3760.37476595,0.000317,2]
[341562163,1730995846413,-181.11,0.00030136,2]
[341562164,1730995846425,-150.25186792,0.00030557,2]
[341562165,1730995846436,-150.25186792,0.00031079,2]
[341562166,1730995846446,-22.01575197,0.00031331,2]
[341562167,1730996061091,167.097032,0.00013973,2]
[341562196,1730996558319,467.97,0.00032393,30]
[341562197,1730996558621,350.2249,0.00032393,30]
[341562198,1730996559057,263.44885,0.00032393,30]
[341562199,1730996559426,788.5,0.00032393,30]
[341562203,1730996649697,190.857155,0.00013973,2]
[341562227,1730996916177,426.99007599,0.000134,2]
[341562288,1730997031968,-288.88835543,0.00025,120]
[341562352,1730997038168,-729.67705255,0.00025,120]
[341562384,1730997043278,-522.22930782,0.00025,120]
[341562385,1730997043288,-169.119117,0.00029959,2]
[341562386,1730997043298,-646.531862,0.00029959,2]
[341562387,1730997043307,-4343.06137779,0.0003,2]
[341562388,1730997043319,-646.531862,0.00030333,2]
[341562389,1730997043328,-500.0,0.00030683,2]
[341562390,1730997043337,-646.531862,0.00030708,2]
[341562391,1730997043347,-2336.0,0.00030956,2]
[341562392,1730997043356,-500.0,0.00030956,2]
[341562393,1730997043365,-500.0,0.00030956,2]
[341562394,1730997043374,-500.0,0.00030956,2]
[341562395,1730997043383,-500.0,0.00030956,2]
[341562396,1730997043392,-500.0,0.00030956,2]
[341562397,1730997043402,-1552.49,0.00030956,2]
[341562398,1730997043411,-2039.1,0.00030956,2]
[341562399,1730997043420,-500.0,0.00030956,2]
[341562400,1730997043430,-799.82,0.00030956,2]
[341562401,1730997043440,-500.0,0.00030956,2]
[341562402,1730997043449,-500.0,0.00030956,2]
[341562403,1730997043459,-516.08682102,0.00030956,2]
[341562404,1730997043468,-500.0,0.00030956,2]
[341562405,1730997043478,-500.0,0.00030957,2]
[341562406,1730997043488,-500.0,0.00030957,2]
[341562407,1730997043497,-500.0,0.00030957,2]
[341562408,1730997043507,-500.0,0.00030957,2]
[341562409,1730997043517,-500.0,0.00030957,2]
[341562410,1730997043527,-500.0,0.00030957,2]
[341562411,1730997043537,-500.0,0.00030957,2]
[341562412,1730997043547,-500.0,0.00030957,2]
[341562413,1730997043557,-500.0,0.00030957,2]
[341562414,1730997043569,-646.531862,0.00031082,2]
[341562415,1730997043580,-1134.0,0.0003122,2]
[341562416,1730997043590,-2392.0,0.0003122,2]
[341562417,1730997043600,-2336.0,0.0003123,2]
[341562418,1730997043609,-500.0,0.0003123,2]
[341562419,1730997043619,-1552.49,0.0003123,2]
[341562420,1730997043629,-2039.1,0.0003123,2]
[341562421,1730997043639,-799.82,0.0003123,2]
[341562422,1730997043648,-263.06,0.0003123,2]
[341562423,1730997043660,-197.20437652,0.00031231,2]
[341562424,1730997043670,-500.0,0.00031231,2]
[341562425,1730997043679,-500.0,0.00031231,2]
[341562426,1730997043689,-500.0,0.00031231,2]
[341562427,1730997043698,-500.0,0.00031231,2]
[341562428,1730997043709,-500.0,0.00031231,2]
[341562429,1730997043718,-646.531862,0.00031457,2]
[341562430,1730997043729,-942.82231555,0.00031463,2]
[341562431,1730997043739,-2336.0,0.00031504,2]
[341562432,1730997043750,-500.0,0.00031504,2]
[341562433,1730997043759,-1552.49,0.00031504,2]
[341562434,1730997043769,-2039.1,0.00031504,2]
[341562435,1730997043779,-799.82,0.00031504,2]
[341562436,1730997043788,-500.0,0.00031505,2]
[341562437,1730997043797,-500.0,0.00031505,2]
[341562438,1730997043806,-377.52443513,0.00031505,2]
[341562439,1730997043818,-156.21,0.00031505,2]
[341562440,1730997043832,-270.8,0.00031505,2]
[341562441,1730997043843,-150.25186792,0.000316,2]
[341562442,1730997043854,-164.614,0.0003162,30]
[341562443,1730997043865,-942.82231555,0.00031629,2]
[341562444,1730997043874,-495.74,0.0003169,10]
[341562445,1730997043883,-413.12,0.0003169,10]
[341562446,1730997043893,-344.26,0.0003169,10]
[341562447,1730997043902,-204.33516779,0.00031699,2]
[341562448,1730997043912,-221.83227776,0.00031699,2]
[341562450,1730997043921,-226.70930574,0.00031699,2]
[341562452,1730997043931,-257.91113941,0.00031699,2]
[341562454,1730997043940,-219.22455733,0.00031699,2]
[341562456,1730997043949,-216.93087198,0.00031699,2]
[341562457,1730997043959,-4975.64152259,0.000317,2]
[341562458,1730997043969,-30000.0,0.000317,3]
[341562459,1730997043979,-30000.0,0.000317,4]
[341562460,1730997043988,-151.0,0.000317,7]
[341562461,1730997043996,-151.0,0.000317,7]
[341562462,1730997044006,-151.0,0.000317,7]
[341562463,1730997044016,-151.0,0.000317,7]
[341562464,1730997044027,-151.0,0.000317,7]
[341562465,1730997044036,-151.0,0.000317,7]
[341562466,1730997044047,-293.59724,0.000317,7]
[341562467,1730997044057,-151.0,0.000317,7]
[341562468,1730997044071,-151.0,0.000317,7]
[341562469,1730997044080,-151.0,0.000317,7]
[341562470,1730997044090,-151.0,0.000317,7]
[341562471,1730997044099,-151.0,0.000317,7]
[341562472,1730997044108,-225.016779,0.000317,7]
[341562473,1730997044119,-151.0,0.000317,7]
[341562474,1730997044129,-151.666021,0.000317,7]
[341562475,1730997044139,-1528.127666,0.000317,7]
[341562476,1730997044149,-1528.127666,0.000317,7]
[341562477,1730997044159,-151.0,0.000317,7]
[341562478,1730997044169,-151.0,0.000317,7]
[341562479,1730997044178,-151.0,0.000317,7]
[341562480,1730997044187,-151.0,0.000317,7]
[341562481,1730997044196,-151.0,0.000317,7]
[341562482,1730997044209,-197.096595,0.000317,7]
[341562483,1730997044220,-151.0,0.000317,7]
[341562484,1730997044233,-197.096595,0.000317,7]
[341562485,1730997044245,-197.096595,0.000317,7]
[341562486,1730997044256,-197.096595,0.000317,7]
[341562487,1730997044267,-151.0,0.000317,7]
[341562488,1730997044276,-151.0,0.000317,7]
[341562489,1730997044285,-151.0,0.000317,7]
[341562490,1730997044295,-151.0,0.000317,7]
[341562491,1730997044304,-151.0,0.000317,7]
[341562492,1730997044316,-151.0,0.000317,7]
[341562493,1730997044334,-151.0,0.000317,7]
[341562494,1730997044344,-151.0,0.000317,7]
[341562495,1730997044355,-151.0,0.000317,7]
[341562496,1730997044365,-889.177475,0.000317,7]
[341562497,1730997044374,-889.177475,0.000317,7]
[341562498,1730997044383,-889.177475,0.000317,7]
[341562499,1730997044393,-889.177475,0.000317,7]
[341562500,1730997044402,-151.0,0.000317,7]
[341562501,1730997044413,-151.0,0.000317,7]
[341562502,1730997044424,-151.0,0.000317,7]
[341562503,1730997044435,-243.577991,0.000317,7]
[341562504,1730997044447,-151.0,0.000317,7]
[341562505,1730997044460,-361.003759,0.000317,7]
[341562506,1730997044470,-361.003759,0.000317,7]
[341562507,1730997044480,-151.0,0.000317,7]
[341562508,1730997044490,-722.511334,0.000317,7]
[341562509,1730997044502,-151.0,0.000317,7]
[341562510,1730997044511,-151.0,0.000317,7]
[341562511,1730997044521,-1389.415242,0.000317,7]
[341562512,1730997044531,-497.320974,0.000317,7]
[341562513,1730997044541,-1389.415242,0.000317,7]
[341562514,1730997044552,-497.320974,0.000317,7]
[341562515,1730997044564,-538.174157,0.000317,7]
[341562516,1730997044577,-538.174157,0.000317,7]
[341562517,1730997044588,-2289.19263,0.000317,7]
[341562518,1730997044597,-151.0,0.000317,7]
[341562519,1730997044607,-2289.19263,0.000317,7]
[341562520,1730997044618,-151.0,0.000317,7]
[341562521,1730997044629,-230.301179,0.000317,7]
[341562522,1730997044639,-230.301179,0.000317,7]
[341562523,1730997044650,-595.952262,0.000317,7]
[341562524,1730997044662,-595.952262,0.000317,7]
[341562525,1730997044672,-151.0,0.000317,7]
[341562526,1730997044681,-151.0,0.000317,7]
[341562527,1730997044689,-378.464371,0.000317,7]
[341562528,1730997044699,-1596.807118,0.000317,7]
[341562529,1730997044707,-1596.807118,0.000317,7]
[341562530,1730997044717,-378.464371,0.000317,7]
[341562531,1730997044726,-202.993665,0.000317,7]
[341562532,1730997044735,-202.993665,0.000317,7]
[341562533,1730997044744,-151.0,0.000317,7]
[341562534,1730997044753,-260.130385,0.000317,7]